fUST/lending_fUST_20241219
["ID","MTS","AMOUNT","RATE_DAILY","PERIOD"]
[345922656,1734549042497,-206.778775,0.0002348,7]
[345922657,1734549042506,-206.778775,0.0002348,7]
[345922658,1734549042516,-151.0,0.0002348,7]
[345922659,1734549042526,-151.0,0.0002348,7]
[345922660,1734549042535,-243.584001,0.0002348,7]
[345922661,1734549042547,-243.584001,0.0002348,7]
[345922662,1734549042557,-340.469991,0.0002348,7]
[345922663,1734549042566,-340.469991,0.0002348,7]
[345922664,1734549042576,-151.0,0.0002348,7]
[345922665,1734549042585,-10602.23,0.0002348,2]
[345922666,1734549042595,-151.0,0.0002348,7]
[345922667,1734549042604,-151.0,0.0002348,7]
[345922668,1734549042614,-3000.0,0.0002349,2]
[345922669,1734549042623,-151.0,0.0002349,7]
[345922670,1734549042633,-426.888201,0.0002349,7]
[345922671,1734549042643,-426.888201,0.0002349,7]
[345922672,1734549042652,-151.0,0.0002349,7]
[345922673,1734549042662,-151.0,0.0002349,7]
[345922674,1734549042672,-151.0,0.0002349,7]
[345922675,1734549042682,-174.174599,0.0002349,7]
[345922676,1734549042691,-342.681892,0.0002349,7]
[345922677,1734549042701,-342.681892,0.0002349,7]
[345922678,1734549042711,-151.0,0.0002349,7]
[345922679,1734549042720,-151.0,0.0002349,7]
[345922680,1734549042730,-151.0,0.0002349,7]
[345922681,1734549042740,-300.066246,0.0002349,7]
[345922682,1734549042750,-206.778775,0.0002349,7]
[345922683,1734549042759,-206.778775,0.0002349,7]
[345922684,1734549042770,-151.0,0.0002349,7]
[345922685,1734549042779,-151.0,0.0002349,7]
[345922686,1734549042790,-243.584001,0.0002349,7]
[345922687,1734549042803,-243.584001,0.0002349,7]
[345922688,1734549042812,-340.469991,0.0002349,7]
[345922689,1734549042821,-340.469991,0.0002349,7]
[345922690,1734549042831,-151.0,0.0002349,7]
[345922691,1734549042841,-151.0,0.0002349,7]
[345922692,1734549042851,-151.0,0.0002349,7]
[345922693,1734549042861,-3663.159114,0.000235,2]
[345922694,1734549042870,-151.0,0.000235,7]
[345922695,1734549042880,-426.888201,0.000235,7]
[345922696,1734549042889,-426.888201,0.000235,7]
[345922697,1734549042899,-151.0,0.000235,7]
[345922698,1734549042908,-151.0,0.000235,7]
[345922699,1734549042918,-151.0,0.000235,7]
[345922700,1734549042927,-342.681892,0.000235,7]
[345922701,1734549042937,-342.681892,0.000235,7]
[345922702,1734549042947,-151.0,0.000235,7]
[345922703,1734549042956,-151.0,0.000235,7]
[345922704,1734549042967,-151.0,0.000235,7]
[345922705,1734549042976,-1000.0,0.000235,7]
[345922706,1734549042986,-1000.0,0.000235,7]
[345922707,1734549042995,-1000.0,0.000235,7]
[345922708,1734549043005,-1000.0,0.000235,7]
[345922709,1734549043016,-1000.0,0.000235,7]
[345922710,1734549043026,-1000.0,0.000235,7]
[345922711,1734549043036,-1000.0,0.000235,7]
[345922712,1734549043052,-1000.0,0.000235,7]
[345922713,1734549043062,-1000.0,0.000235,7]
[345922714,1734549043072,-1000.0,0.000235,7]
[345922715,1734549043081,-1000.0,0.000235,7]
[345922716,1734549043091,-1000.0,0.000235,7]
[345922718,1734549043101,-1000.0,0.000235,7]
[345922719,1734549043110,-1000.0,0.000235,7]
[345922720,1734549043120,-1000.0,0.000235,7]
[345922721,1734549043131,-1000.0,0.000235,7]
[345922722,1734549043140,-1000.0,0.000235,7]
[345922723,1734549043150,-1000.0,0.000235,7]
[345922724,1734549043159,-1000.0,0.000235,7]
[345922725,1734549043168,-1000.0,0.000235,7]
[345922726,1734549043178,-1000.0,0.000235,7]
[345922727,1734549043188,-1000.0,0.000235,7]
[345922728,1734549043197,-1000.0,0.000235,7]
[345922729,1734549043207,-1000.0,0.000235,7]
[345922731,1734549043217,-1000.0,0.000235,7]
[345922733,1734549043227,-1000.0,0.000235,7]
[345922735,1734549043236,-1000.0,0.000235,7]
[345922736,1734549043246,-1000.0,0.000235,7]
[345922737,1734549043256,-1000.0,0.000235,7]
[345922738,1734549043265,-1000.0,0.000235,7]
[345922740,1734549043275,-1000.0,0.000235,7]
[345922742,1734549043284,-1000.0,0.000235,7]
[345922744,1734549043297,-1000.0,0.000235,7]
[345922746,1734549043306,-1000.0,0.000235,7]
[345922748,1734549043316,-1000.0,0.000235,7]
[345922750,1734549043325,-1000.0,0.000235,7]
[345922752,1734549043335,-1000.0,0.000235,7]
[345922754,1734549043345,-1000.0,0.000235,7]
[345922756,1734549043354,-1000.0,0.000235,7]
[345922758,1734549043364,-1000.0,0.000235,7]
[345922760,1734549043373,-1000.0,0.000235,7]
[345922762,1734549043383,-1000.0,0.000235,7]
[345922764,1734549043391,-1000.0,0.000235,7]
[345922766,1734549043402,-1000.0,0.000235,7]
[345922769,1734549043411,-1000.0,0.000235,7]
[345922772,1734549043422,-1000.0,0.000235,7]
[345922775,1734549043432,-1000.0,0.000235,7]
[345922778,1734549043442,-1000.0,0.000235,7]
[345922782,1734549043452,-1000.0,0.000235,7]
[345922785,1734549043461,-1000.0,0.000235,7]
[345922788,1734549043471,-1000.0,0.000235,7]
[345922791,1734549043481,-1000.0,0.000235,7]
[345922794,1734549043491,-1000.0,0.000235,7]
[345922796,1734549043499,-1000.0,0.000235,7]
[345922799,1734549043509,-1000.0,0.000235,7]
[345922802,1734549043518,-1000.0,0.000235,7]
[345922804,1734549043529,-1000.0,0.000235,7]
[345922809,1734549043547,-1000.0,0.000235,7]
[345922812,1734549043558,-1000.0,0.000235,7]
[345922814,1734549043568,-1000.0,0.000235,7]
[345922816,1734549043578,-1000.0,0.000235,7]
[345922817,1734549043587,-172.0424744,0.000235,7]
[345922835,1734549043750,-526.6,0.000235,7]
[345922867,1734549044062,-573.49167601,0.00023273,2]
[345922868,1734549044072,-150.50327989,0.00023273,2]
[345922874,1734549044120,-500.94952401,0.00023273,2]
[345922876,1734549044131,-39.34744558,0.0002342,7]
[345922878,1734549044144,-154.58696542,0.0002342,7]
[345922880,1734549044154,-193.934411,0.0002343,7]
[345922882,1734549044163,-193.934411,0.0002345,7]
[345922884,1734549044173,-193.934411,0.0002346,7]
[345922885,1734549044183,-301.3575256,0.000235,7]
[345922886,1734549044192,-1000.0,0.000235,7]
[345922887,1734549044201,-204.72258011,0.000235,7]
[345922928,1734549046745,-159.0,0.00022,2]
[345922930,1734549046755,-1158.241354,0.0002342,7]
[345922932,1734549046764,-193.934411,0.0002342,7]
[345922934,1734549046774,-1158.241354,0.0002343,7]
[345922936,1734549046784,-193.934411,0.0002343,7]
[345922938,1734549046793,-1158.241354,0.0002345,7]
[345922940,1734549046805,-1158.241354,0.0002346,7]
[345922942,1734549046815,-193.934411,0.0002347,7]
[345922943,1734549046824,-193.934411,0.0002348,7]
[345922945,1734549046834,-193.934411,0.0002348,7]
[345922947,1734549046844,-193.934411,0.0002349,7]
[345922949,1734549046853,-795.27741989,0.000235,7]
[345922951,1734549046863,-1000.0,0.000235,7]
[345922954,1734549046873,-1000.0,0.000235,7]
[345922955,1734549046882,-1000.0,0.000235,7]
[345922957,1734549046891,-1000.0,0.000235,7]
[345922959,1734549046900,-1000.0,0.000235,7]
[345922961,1734549046910,-1000.0,0.000235,7]
[345922964,1734549046919,-1000.0,0.000235,7]
[345922965,1734549046929,-1000.0,0.000235,7]
[345922967,1734549046938,-1000.0,0.000235,7]
[345922969,1734549046947,-1000.0,0.000235,7]
[345922971,1734549046957,-1000.0,0.000235,7]
[345922973,1734549046966,-206.778775,0.000235,7]
[345922975,1734549046976,-1000.0,0.000235,7]
[345922977,1734549046985,-1000.0,0.000235,7]
[345922980,1734549046995,-1000.0,0.000235,7]
[345922982,1734549047004,-1000.0,0.000235,7]
[345922983,1734549047013,-1000.0,0.000235,7]
[345922985,1734549047023,-1000.0,0.000235,7]
[345922987,1734549047032,-1000.0,0.000235,7]
[345922989,1734549047042,-1000.0,0.000235,7]
[345922992,1734549047054,-1000.0,0.000235,7]
[345922994,1734549047063,-206.778775,0.000235,7]
[345922996,1734549047073,-1000.0,0.000235,7]
[345922998,1734549047082,-1000.0,0.000235,7]
[345923000,1734549047093,-593.59907107,0.000235,7]
[345923002,1734549047104,-406.40092893,0.000235,7]
[345923004,1734549047114,-1000.0,0.000235,7]
[345923006,1734549047123,-1000.0,0.000235,7]
[345923008,1734549047135,-1000.0,0.000235,7]
[345923010,1734549047144,-1000.0,0.000235,7]
[345923012,1734549047153,-1000.0,0.000235,7]
[345923014,1734549047162,-1000.0,0.000235,7]
[345923016,1734549047174,-1000.0,0.000235,7]
[345923018,1734549047183,-1000.0,0.000235,7]
[345923020,1734549047192,-1000.0,0.000235,7]
[345923022,1734549047201,-1000.0,0.000235,7]
[345923024,1734549047211,-1000.0,0.000235,7]
[345923026,1734549047221,-1000.0,0.000235,7]
[345923028,1734549047230,-1044.374272,0.000235,7]
[345923030,1734549047239,-151.0,0.000235,7]
[345923032,1734549047248,-227.679499,0.000235,7]
[345923034,1734549047257,-243.584001,0.000235,7]
[345923036,1734549047266,-243.584001,0.000235,7]
[345923037,1734549047276,-340.469991,0.000235,7]
[345923039,1734549047285,-340.469991,0.000235,7]
[345923041,1734549047294,-340.469991,0.000235,7]
[345923043,1734549047306,-340.469991,0.000235,7]
[345923045,1734549047315,-340.469991,0.000235,7]
[345923047,1734549047324,-340.469997,0.000235,7]
[345923049,1734549047333,-151.0,0.000235,7]
[345923051,1734549047343,-151.0,0.000235,7]
[345923053,1734549047352,-151.0,0.000235,7]
[345923055,1734549047361,-151.0,0.000235,7]
[345923057,1734549047372,-151.0,0.000235,7]
[345923059,1734549047381,-151.0,0.000235,7]
[345923061,1734549047391,-299.158614,0.000235,7]
[345923063,1734549047400,-193.934411,0.000235,7]
[345923065,1734549047409,-193.934411,0.000235,7]
[345923067,1734549047419,-1000.42972485,0.00023564,2]
[345923069,1734549047428,-151.0,0.00023612,7]
[345923071,1734549047438,-184.588436,0.00023648,7]
[345923073,1734549047447,-151.0,0.00023648,7]
[345923075,1734549047456,-426.888201,0.00023648,7]
[345923077,1734549047466,-426.888201,0.00023648,7]
[345923079,1734549047475,-151.0,0.00023648,7]
[345923081,1734549047485,-151.0,0.00023648,7]
[345923083,1734549047497,-151.0,0.00023648,7]
[345923085,1734549047506,-342.681892,0.00023648,7]
[345923087,1734549047515,-342.681892,0.00023648,7]
[345923089,1734549047525,-342.681892,0.00023648,7]
[345923091,1734549047534,-342.681892,0.00023648,7]
[345923093,1734549047544,-151.0,0.00023648,7]
[345923095,1734549047556,-151.0,0.00023648,7]
[345923097,1734549047565,-151.0,0.00023648,7]
[345923099,1734549047575,-151.0,0.00023648,7]
[345923101,1734549047584,-151.0,0.00023648,7]
[345923103,1734549047593,-206.904423,0.00023648,7]
[345923104,1734549047603,-206.778775,0.00023648,7]
[345923106,1734549047612,-206.778775,0.00023648,7]
[345923109,1734549047622,-206.778775,0.00023648,7]
[345923111,1734549047631,-206.778768,0.00023648,7]
[345923112,1734549047641,-151.0,0.00023648,7]
[345923114,1734549047651,-151.0,0.00023648,7]
[345923117,1734549047660,-243.584001,0.00023648,7]
[345923118,1734549047669,-243.584001,0.00023648,7]
[345923120,1734549047679,-243.584001,0.00023648,7]
[345923122,1734549047688,-243.584001,0.00023648,7]
[345923124,1734549047698,-13419.68504723,0.00023648,5]
[345923127,1734549047710,-4041.10048461,0.00023648,5]
[345923570,1734549793776,165.466551,0.00013973,2]
[345923609,1734550231887,-1426.28046374,0.0002119,2]
[345923610,1734550231896,-300.0,0.0002162,2]
[345923611,1734550231906,-300.0,0.0002162,2]
[345923612,1734550231916,-11942.7598698,0.00021621,2]
[345923613,1734550231926,-27105.70466434,0.00022,5]
[345923614,1734550232025,-334.33272693,0.00022,5]
[345923615,1734550232064,-794.4406669,0.00022,5]
[345923652,1734550237843,-6625.62023205,0.00022,5]
[345923655,1734550237854,-2467.7961,0.00022,5]
[345924353,1734550245883,-3672.10560978,0.00022,5]
[345924355,1734550245894,-789.89169263,0.00022145,2]
[345924357,1734550245903,-338.51355648,0.00022245,2]
[345924359,1734550245913,-226.278949,0.00022255,2]
[345924361,1734550245923,-7421.80653931,0.00022652,2]
[345926253,1734550466098,150.4,0.00016161,2]
[345926256,1734550762768,165.495988,0.00013973,2]
[345926307,1734551432080,-195.542756,0.0002203,2]
[345926309,1734551432090,-300.0,0.00022137,2]
[345926311,1734551432100,-300.0,0.00022137,2]
[345926313,1734551432109,-530.14224398,0.00022138,2]
[345926375,1734551435887,-380.7,0.00022138,2]
[345926376,1734551435982,-1646.1496324,0.00022138,2]
[345926377,1734551435994,-22343.00812362,0.00022138,2]
[345926380,1734551436004,-250.0,0.00022432,2]
[345926382,1734551436013,-279.16,0.0002247,2]
[345926384,1734551436023,-250.0,0.00022652,2]
[345926386,1734551436032,-7000.0,0.00023,2]
[345926388,1734551436041,-1439.58140798,0.00023479,9]
[345926390,1734551436050,-192503.03743723,0.000235,2]
[345926392,1734551436060,-15003.02792765,0.000235,2]
[345926394,1734551436070,-693957.91,0.000235,4]
[345926396,1734551436079,-251.0077872,0.00023648,5]
[345926398,1734551436088,-500.0,0.00023648,2]
[345926400,1734551436097,-500.0,0.00023648,2]
[345926402,1734551436107,-500.0,0.00023648,2]
[345926404,1734551436116,-500.0,0.00023648,2]
[345926406,1734551436126,-500.0,0.00023648,2]
[345926408,1734551436135,-497.9,0.00023648,2]
[345926410,1734551436144,-751.19699192,0.00023753,2]
[345926412,1734551436154,-1000.0,0.00024,24]
[345926414,1734551436163,-420.0,0.00024052,2]
[345926416,1734551436172,-751.19699192,0.00024106,2]
[345926418,1734551436182,-1849.78,0.00024109,2]
[345926420,1734551436191,-420.0,0.00024351,2]
[345926422,1734551436200,-63584.0,0.00024366,7]
[345926424,1734551436209,-151.0,0.00024366,7]
[345926426,1734551436218,-151.0,0.00024366,7]
[345926428,1734551436228,-151.0,0.00024366,7]
[345926430,1734551436237,-151.0,0.00024366,7]
[345926432,1734551436247,-300.0,0.000244,11]
[345926434,1734551436256,-151.0,0.000244,9]
[345926437,1734551436266,-751.19699192,0.00024459,2]
[345926439,1734551436275,-548.91,0.000245,2]
[345926441,1734551436286,-151.0,0.000245,10]
[345926443,1734551436295,-2110.0,0.00024533,15]
[345926445,1734551436306,-11305.97809274,0.00024556,5]
[345926447,1734551436315,-666.0,0.00024557,2]
[345926449,1734551436325,-1133.32566586,0.00024557,2]
[345926451,1734551436334,-1370.46278208,0.0002456,32]
[345926452,1734551436343,-2000.0,0.000246,2]
[345926453,1734551436352,-500.0,0.00024657,6]
[345926454,1734551436361,-500.0,0.00024657,6]
[345926455,1734551436371,-218.80730402,0.00024657,6]
[345926456,1734551436380,-500.0,0.00024657,6]
[345926457,1734551436389,-521.71679279,0.00024657,6]
[345926458,1734551436399,-500.0,0.00024657,6]
[345926459,1734551436408,-501.404485,0.00024657,6]
[345926460,1734551436417,-505.23093369,0.00024657,6]
[345926461,1734551436427,-587.63052752,0.00024657,6]
[345926462,1734551436436,-500.0,0.00024657,6]
[345926463,1734551436445,-635.78433865,0.00024657,6]
[345926464,1734551436454,-497.79688668,0.00024657,6]
[345926465,1734551436463,-500.0,0.00024657,6]
[345926466,1734551436472,-497.47543365,0.00024657,6]
[345926467,1734551436482,-501.49571884,0.00024657,6]
[345926468,1734551436491,-503.94099068,0.00024657,6]
[345926469,1734551436501,-512.51889987,0.00024657,6]
[345926470,1734551436510,-500.0,0.00024657,6]
[345926471,1734551436520,-577.65488237,0.00024657,6]
[345926472,1734551436529,-500.0,0.00024657,6]
[345926473,1734551436538,-510.98194837,0.00024657,6]
[345926474,1734551436551,-507.45228874,0.00024657,6]
[345926475,1734551436560,-500.0,0.00024657,2]
[345926476,1734551436570,-500.0,0.00024657,2]
[345926477,1734551436579,-500.0,0.00024657,2]
[345926478,1734551436589,-503.2769917,0.00024657,2]
[345926479,1734551436599,-508.52034204,0.00024657,6]
[345926480,1734551436609,-500.0,0.00024657,6]
[345926481,1734551436618,-419.20820444,0.00024657,6]
[345926482,1734551436628,-500.0,0.00024657,6]
[345926483,1734551436637,-497.84892359,0.00024657,6]
[345926484,1734551436646,-500.0,0.00024657,6]
[345926485,1734551436655,-504.48880652,0.00024657,6]
[345926486,1734551436665,-500.94309284,0.00024657,6]
[345926487,1734551436674,-500.0,0.00024657,6]
[345926488,1734551436683,-500.0,0.00024657,6]
[345926489,1734551436693,-500.0,0.00024657,6]
[345926490,1734551436702,-500.0,0.00024657,6]
[345926491,1734551436713,-500.0,0.00024657,6]
[345926492,1734551436723,-500.0,0.00024657,6]
[345926493,1734551436734,-517.15499685,0.00024657,6]
[345926494,1734551436747,-500.0,0.00024657,6]
[345926495,1734551436756,-271.61370192,0.00024657,2]
[345926496,1734551436765,-412.28885947,0.00024657,6]
[345926497,1734551436775,-504.90091287,0.00024657,6]
[345926498,1734551436784,-500.0,0.00024657,6]
[345926499,1734551436794,-385.23036125,0.00024657,6]
[345926500,1734551436803,-500.0,0.00024657,6]
[345926501,1734551436813,-500.0,0.00024657,6]
[345926502,1734551436823,-502.02629108,0.00024657,6]
[345926503,1734551436834,-500.0,0.00024657,6]
[345926504,1734551436843,-159.68695853,0.00024657,6]
[345926505,1734551436852,-502.36205059,0.00024657,6]
[345926506,1734551436861,-501.34537852,0.00024657,6]
[345926507,1734551436871,-500.0,0.00024657,6]
[345926508,1734551436880,-502.29732385,0.00024657,6]
[345926509,1734551436890,-500.0,0.00024657,6]
[345926510,1734551436899,-297.76800931,0.00024657,6]
[345926511,1734551436910,-500.0,0.00024657,6]
[345926512,1734551436921,-503.3925379,0.00024657,6]
[345926513,1734551436930,-500.0,0.00024657,6]
[345926514,1734551436939,-500.0,0.00024657,6]
[345926515,1734551436949,-500.0,0.00024657,6]
[345926516,1734551436959,-500.0,0.00024657,6]
[345926517,1734551436969,-503.62971518,0.00024657,6]
[345926518,1734551436978,-500.0,0.00024657,6]
[345926519,1734551436988,-500.0,0.00024657,6]
[345926520,1734551436998,-779.44,0.00024657,6]
[345926521,1734551437008,-501.21578373,0.00024657,6]
[345926522,1734551437018,-566.73,0.00024657,6]
[345926523,1734551437028,-500.0,0.00024657,6]
[345926524,1734551437038,-265.94453959,0.00024657,6]
[345926525,1734551437048,-500.0,0.00024657,6]
[345926526,1734551437059,-501.10213982,0.00024657,6]
[345926527,1734551437069,-500.0,0.00024657,6]
[345926528,1734551437078,-500.0,0.00024657,6]
[345926529,1734551437088,-500.0,0.00024657,6]
[345926530,1734551437098,-500.0,0.00024657,6]
[345926531,1734551437107,-1106.63,0.00024657,2]
[345926532,1734551437117,-500.0,0.00024657,6]
[345926533,1734551437127,-500.0,0.00024657,6]
[345926534,1734551437136,-501.87595338,0.00024657,6]
[345926535,1734551437146,-502.64729746,0.00024657,6]
[345926536,1734551437156,-500.0,0.00024657,6]
[345926537,1734551437165,-500.0,0.00024657,6]
[345926538,1734551437175,-500.0,0.00024657,6]
[345926539,1734551437184,-500.0,0.00024657,6]
[345926540,1734551437194,-860.55,0.00024657,6]
[345926541,1734551437204,-500.0,0.00024657,6]
[345926542,1734551437215,-500.0,0.00024657,6]
[345926543,1734551437225,-500.0,0.00024657,6]
[345926544,1734551437236,-500.0,0.00024657,6]
[345926545,1734551437245,-502.59382025,0.00024657,6]
[345926546,1734551437255,-501.74632328,0.00024657,6]
[345926547,1734551437266,-502.67928728,0.00024657,6]
[345926548,1734551437275,-503.20518944,0.00024657,6]
[345926549,1734551437285,-500.0,0.00024657,6]
[345926550,1734551437294,-503.21867935,0.00024657,6]
[345926551,1734551437304,-500.0,0.00024657,6]
[345926552,1734551437313,-502.01403581,0.00024657,6]
[345926553,1734551437323,-502.62177277,0.00024657,6]
[345926554,1734551437332,-500.0,0.00024657,6]
[345926555,1734551437342,-502.88054046,0.00024657,6]
[345926556,1734551437353,-500.0,0.00024657,6]
[345926557,1734551437362,-500.0,0.00024657,6]
[345926558,1734551437372,-501.62812195,0.00024657,6]
[345926559,1734551437381,-276.95174061,0.00024657,6]
[345926560,1734551437391,-500.0,0.00024657,6]
[345926561,1734551437400,-500.0,0.00024657,6]
[345926562,1734551437410,-528.63,0.00024657,6]
[345926563,1734551437419,-500.0,0.00024657,6]
[345926564,1734551437429,-500.0,0.00024657,6]
[345926565,1734551437439,-500.0,0.00024657,6]
[345926566,1734551437449,-220.89989802,0.00024657,6]
[345926567,1734551437459,-616.12,0.00024657,6]
[345926568,1734551437469,-503.79677308,0.00024657,6]
[345926569,1734551437478,-192.77420092,0.00024657,6]
[345926570,1734551437488,-501.79254833,0.00024657,6]
[345926571,1734551437498,-151.0,0.00024657,7]
[345926572,1734551437509,-151.0,0.00024657,7]
[345926573,1734551437519,-177.639826,0.00024657,7]
[345926574,1734551437529,-500.0,0.00024657,6]
[345926575,1734551437539,-502.88449327,0.00024657,6]
[345926576,1734551437548,-502.83245348,0.00024657,6]
[345926577,1734551437557,-501.02653205,0.00024657,6]
[345926579,1734551437567,-500.0,0.00024657,6]
[345926581,1734551437576,-535.52,0.00024657,6]
[345926583,1734551437586,-501.79653922,0.00024657,6]
[345926584,1734551437595,-500.0,0.00024657,6]
[345926585,1734551437605,-170.755281,0.00024657,7]
[345926586,1734551437614,-170.755281,0.00024657,7]
[345926587,1734551437624,-170.755281,0.00024657,7]
[345926588,1734551437633,-170.755281,0.00024657,7]
[345926589,1734551437643,-170.755281,0.00024657,7]
[345926590,1734551437652,-170.755281,0.00024657,7]
[345926591,1734551437662,-170.755281,0.00024657,7]
[345926592,1734551437672,-170.755281,0.00024657,7]
[345926593,1734551437682,-170.755281,0.00024657,7]
[345926594,1734551437692,-412.54974142,0.00024657,6]
[345926595,1734551437702,-170.755281,0.00024657,7]
[345926596,1734551437711,-170.755281,0.00024657,7]
[345926597,1734551437721,-170.755281,0.00024657,7]
[345926598,1734551437731,-170.755281,0.00024657,7]
[345926600,1734551437743,-170.755281,0.00024657,7]
[345926602,1734551437753,-170.755281,0.00024657,7]
[345926604,1734551437762,-170.755281,0.00024657,7]
[345926606,1734551437772,-170.755281,0.00024657,7]
[345926608,1734551437783,-170.755281,0.00024657,7]
[345926609,1734551437793,-170.755281,0.00024657,7]
[345926610,1734551437803,-170.755275,0.00024657,7]
[345926611,1734551437813,-437.9126486,0.00024657,6]
[345926612,1734551437823,-500.0,0.00024657,6]
[345926613,1734551437832,-500.0,0.00024657,6]
[345926614,1734551437842,-500.0,0.00024657,6]
[345926615,1734551437851,-500.0,0.00024657,6]
[345926616,1734551437860,-500.0,0.00024657,6]
[345926617,1734551437870,-500.0,0.00024657,6]
[345926618,1734551437879,-500.0,0.00024657,6]
[345926619,1734551437888,-501.34393327,0.00024657,6]
[345926620,1734551437898,-239.94685515,0.00024657,6]
[345926621,1734551437918,-500.0,0.00024657,6]
[345926622,1734551437928,-500.0,0.00024657,6]
[345926624,1734551437938,-500.0,0.00024657,6]
[345926625,1734551437947,-500.0,0.00024657,6]
[345926626,1734551437957,-1651.25,0.00024657,6]
[345926627,1734551437967,-500.0,0.00024657,6]
[345926628,1734551437976,-500.0,0.00024657,6]
[345926629,1734551437986,-727.73,0.00024657,6]
[345926630,1734551437995,-500.0,0.00024657,6]
[345926631,1734551438005,-500.0,0.00024657,6]
[345926632,1734551438015,-500.0,0.00024657,6]
[345926633,1734551438025,-500.0,0.00024657,6]
[345926634,1734551438035,-500.0,0.00024657,6]
[345926635,1734551438044,-500.0,0.00024657,6]
[345926636,1734551438062,-500.0,0.00024657,6]
[345926637,1734551438072,-500.77722331,0.00024657,6]
[345926638,1734551438081,-504.73031345,0.00024657,6]
[345926639,1734551438091,-500.0,0.00024657,6]
[345926640,1734551438101,-502.35373576,0.00024657,6]
[345926641,1734551438110,-500.0,0.00024657,6]
[345926642,1734551438120,-500.0,0.00024657,2]
[345926643,1734551438130,-194.51079241,0.00024657,6]
[345926644,1734551438140,-500.0,0.00024657,6]
[345926645,1734551438150,-1616.74,0.00024657,2]
[345926646,1734551438160,-500.0,0.00024657,6]
[345926647,1734551438170,-500.0,0.00024657,6]
[345926648,1734551438179,-2018.44,0.00024657,6]
[345926649,1734551438189,-168.0,0.00024657,6]
[345926650,1734551438199,-500.0,0.00024657,6]
[345926651,1734551438209,-500.0,0.00024657,6]
[345926652,1734551438218,-502.41227685,0.00024657,6]
[345926653,1734551438228,-365.22178288,0.00024657,6]
[345926654,1734551438238,-500.0,0.00024657,6]
[345926655,1734551438248,-500.0,0.00024657,6]
[345926656,1734551438258,-500.0,0.00024657,6]
[345926657,1734551438268,-500.0,0.00024657,6]
[345926658,1734551438277,-1998.26,0.00024657,6]
[345926659,1734551438287,-500.0,0.00024657,6]
[345926660,1734551438297,-500.0,0.00024657,6]
[345926661,1734551438306,-998.35,0.00024657,6]
[345926662,1734551438316,-151.0,0.00024657,7]
[345926663,1734551438327,-151.0,0.00024657,7]
[345926664,1734551438337,-151.0,0.00024657,7]
[345926665,1734551438346,-151.0,0.00024657,7]
[345926666,1734551438356,-515.98,0.00024657,6]
[345926667,1734551438366,-151.671158,0.00024657,7]
[345926668,1734551438376,-522.53,0.00024657,6]
[345926669,1734551438385,-500.0,0.00024657,6]
[345926670,1734551438395,-1250.65,0.00024657,6]
[345926671,1734551438405,-500.0,0.00024657,6]
[345926672,1734551438415,-1100.45,0.00024657,6]
[345926673,1734551438425,-2056.33,0.00024657,6]
[345926674,1734551438435,-500.0,0.00024657,6]
[345926675,1734551438444,-500.0,0.00024657,6]
[345926676,1734551438454,-1421.91,0.00024657,6]